Name,Sub Group,Service Area,Expense Type,Narrative,Date,Transaction Number,Amount,Supplier Name,Supplier Ref,Period,Year
Allerdale Borough Council,16150,Supplies & Services,LEP Flood Recovery Events Funding,General Promotions,03/08/2016,165044,"3,000.00",Redacted information - included personal information ,M00601,5,2016
Allerdale Borough Council,21150,Transfer Payments,Leisure Activities,General Grants,03/08/2016,165045,400.00,KESWICK FOOTBALL CLUB LTD,M00866,5,2016
Allerdale Borough Council,16305,Supplies & Services,Flood Costs 2015,Assest Management Costs - Flooding,24/08/2016,165046,546.70,BARCLAYCARD COMMERCIAL ,X00207,5,2016
Allerdale Borough Council,54105,Capital Expenditure,Disabled Facilities Grants,Grants  Private Individuals (Capital),03/08/2016,165047,450.00,WHINBARROW DESIGN SERVICES,A00311,5,2016
Allerdale Borough Council,54105,Capital Expenditure,Disabled Facilities Grants,Grants  Private Individuals (Capital),03/08/2016,165048,"3,190.00",BLUE FLAME SERVICES LTD,X00213,5,2016
Allerdale Borough Council,54105,Capital Expenditure,Disabled Facilities Grants,Grants  Private Individuals (Capital),03/08/2016,165049,750.00,Redacted information - included personal information ,X00196,5,2016
Allerdale Borough Council,54105,Capital Expenditure,Disabled Facilities Grants,Grants  Private Individuals (Capital),03/08/2016,165050,"3,225.00",BLUE FLAME SERVICES LTD,X00213,5,2016
Allerdale Borough Council,54105,Capital Expenditure,Disabled Facilities Grants,Grants  Private Individuals (Capital),03/08/2016,165051,"3,240.00",TOP NOTCH CONTRACTORS LTD,X00165,5,2016
Allerdale Borough Council,54105,Capital Expenditure,Disabled Facilities Grants,Grants  Private Individuals (Capital),03/08/2016,165052,"10,490.00",BLUE FLAME SERVICES LTD,X00213,5,2016
Allerdale Borough Council,54105,Capital Expenditure,Disabled Facilities Grants,Grants  Private Individuals (Capital),03/08/2016,165053,"10,000.00",K BAILIFF & SON LTD,A01617,5,2016
Allerdale Borough Council,54105,Capital Expenditure,Disabled Facilities Grants,Grants  Private Individuals (Capital),03/08/2016,165054,"3,360.00",PARTNERSHIP IN PROPERTY MANAGEMENT LTD,X00120,5,2016
Allerdale Borough Council,54105,Capital Expenditure,Disabled Facilities Grants,Grants  Private Individuals (Capital),03/08/2016,165055,450.00,BLUE FLAME SERVICES LTD,X00213,5,2016
Allerdale Borough Council,54105,Capital Expenditure,Disabled Facilities Grants,Grants  Private Individuals (Capital),03/08/2016,165056,"4,320.00",BLUE FLAME SERVICES LTD,X00213,5,2016
Allerdale Borough Council,54105,Capital Expenditure,Disabled Facilities Grants,Grants  Private Individuals (Capital),03/08/2016,165057,"3,780.00",K BAILIFF & SON LIMITED,X00116,5,2016
Allerdale Borough Council,54105,Capital Expenditure,Disabled Facilities Grants,Grants  Private Individuals (Capital),03/08/2016,165058,"3,205.00",BLUE FLAME SERVICES LTD,X00213,5,2016
Allerdale Borough Council,16150,Supplies & Services,Town Centre Management,General Promotions,03/08/2016,165059,400.00,CUMBRIAN NEWSPAPERS LIMITED,A00869,5,2016
Allerdale Borough Council,15513,Supplies & Services,Solway Wetlands Project,Subcontractors - General,03/08/2016,165060,"6,462.00",CUMBRIA WILDLIFE TRUST LTD,A01810,5,2016
Allerdale Borough Council,12305,Premises,Corporate Property Maintenance,Inspections and Services,10/08/2016,165061,"1,577.00",REFRIGERATION (MITTON) LTD,C00012,5,2016
Allerdale Borough Council,12101,Premises,Corporate Property Maintenance,External Maintenance & Decoration,03/08/2016,165062,"1,130.00",BINGHAM YATES LIMITED,A02144,5,2016
Allerdale Borough Council,15405,Supplies & Services,EU Referendum,Use of External Printers,03/08/2016,165063,"3,447.08",ADARE SEC LIMITED,A02306,5,2016
Allerdale Borough Council,15405,Supplies & Services,EU Referendum,Use of External Printers,03/08/2016,165064,"8,455.74",ADARE SEC LIMITED,A02306,5,2016
Allerdale Borough Council,16102,Supplies & Services,LEP Flood Recovery Events Funding,Regeneration Initiatives,10/08/2016,165065,"2,000.00",KESWICK TOWN COUNCIL,A00253,5,2016
Allerdale Borough Council,81606,Balance Sheet,General Fund,Provisions-Curwen Land Slip (BSheet),03/08/2016,165066,427.00,ISS WATERERS LANDSCAPE,C00044,5,2016
Allerdale Borough Council,15501,Supplies & Services,Building Control - Chargeable,Consultants Fees,10/08/2016,165067,138.00,PK ELECTRICAL (CARLISLE) LTD,A00778,5,2016
Allerdale Borough Council,15501,Supplies & Services,Building Control - Chargeable,Consultants Fees,10/08/2016,165068,92.00,PK ELECTRICAL (CARLISLE) LTD,A00778,5,2016
Allerdale Borough Council,15501,Supplies & Services,Building Control - Chargeable,Consultants Fees,10/08/2016,165069,46.00,PK ELECTRICAL (CARLISLE) LTD,A00778,5,2016
Allerdale Borough Council,15501,Supplies & Services,Building Control - Chargeable,Consultants Fees,10/08/2016,165070,46.00,PK ELECTRICAL (CARLISLE) LTD,A00778,5,2016
Allerdale Borough Council,12203,Premises,Corporate Property Maintenance,Plumbing and Heating Maintenance,03/08/2016,165071,615.96,O'CONNELL & BEAN (MECH&ELEC) LTD,C00078,5,2016
Allerdale Borough Council,15101,Supplies & Services,New Ways of Working,Equipment Costs,24/08/2016,165072,"1,235.60",FLEXIFORM BUSINESS FURNITURE LTD,C00175,5,2016
Allerdale Borough Council,15501,Supplies & Services,Estates,Consultants Fees,03/08/2016,165073,"1,600.00",JAMES ANDREW RECRUITMENT SOLUTIONS LTD,A02339,5,2016
Allerdale Borough Council,15501,Supplies & Services,Estates,Consultants Fees,03/08/2016,165074,920.00,JAMES ANDREW RECRUITMENT SOLUTIONS LTD,A02339,5,2016
Allerdale Borough Council,50198,Capital Expenditure,New Leisure Facility,Site Clearance / Demolition (Capital),03/08/2016,165075,"10,000.00",ISS WATERERS LANDSCAPE,C00044,5,2016
Allerdale Borough Council,51101,Capital Expenditure,New Leisure Facility,External Contractor Payments (Capital),10/08/2016,165076,"14,166.66",PICK EVERARD,A02007,5,2016
Allerdale Borough Council,15405,Supplies & Services,Npower Energy Efficiency Programme,Use of External Printers,03/08/2016,165077,192.00,FIRPRESS PRINTERS,A00063,5,2016
Allerdale Borough Council,14201,Transport,Finance and Accounting Pay Group,Public Transport,24/08/2016,165078,9.00,BARCLAYCARD COMMERCIAL,X00207,5,2016
Allerdale Borough Council,73102,Holding and Control Accounts,Capital Project Retentions,Holding Accounts General - Expenditure,03/08/2016,165079,"22,948.44",THOMAS ARMSTRONG - CONSTRUCTION,C00003,5,2016
Allerdale Borough Council,15602,Supplies & Services,EU Referendum,Business Reply Licences,03/08/2016,165080,134.02,ROYAL MAIL LETTERS,X00021,5,2016
Allerdale Borough Council,12408,Premises,Corporate Property Maintenance,Water & Sewage,03/08/2016,165081,237.01,UNITED UTILITIES,X00011,5,2016
Allerdale Borough Council,12408,Premises,Public Convenience Cleaning,Water & Sewage,03/08/2016,165082,960.58,UNITED UTILITIES,X00011,5,2016
Allerdale Borough Council,12408,Premises,Public Convenience Cleaning,Water & Sewage,03/08/2016,165083,51.19,UNITED UTILITIES,X00011,5,2016
Allerdale Borough Council,12408,Premises,Corporate Property Maintenance,Water & Sewage,03/08/2016,165084,35.81,UNITED UTILITIES,X00011,5,2016
Allerdale Borough Council,12408,Premises,Corporate Property Maintenance,Water & Sewage,03/08/2016,165085,419.67,UNITED UTILITIES,X00011,5,2016
Allerdale Borough Council,12402,Premises,Corporate Property Maintenance,Electricity,03/08/2016,165086,412.92,SOUTHERN ELECTRIC,X00018,5,2016
Allerdale Borough Council,15804,Supplies & Services,IT Services,Computer Data Lines B.T.,03/08/2016,165087,0.08,BRITISH TELECOMMUNICATIONS,X00004,5,2016
Allerdale Borough Council,12402,Premises,Corporate Property Maintenance,Electricity,03/08/2016,165088,31.50,BES COMMERCIAL ELECTRICITY LTD,X00243,5,2016
Allerdale Borough Council,15704,Supplies & Services,IT Services,Mobile Phones,03/08/2016,165089,"1,224.19",VODAFONE,A00551,5,2016
Allerdale Borough Council,12408,Premises,Corporate Property Maintenance,Water & Sewage,03/08/2016,165090,45.90,UNITED UTILITIES,X00011,5,2016
Allerdale Borough Council,12403,Premises,Corporate Property Maintenance,Gas,03/08/2016,165091,863.96,BRITISH GAS,X00039,5,2016
Allerdale Borough Council,16150,Supplies & Services,Town Centre Management,General Promotions,03/08/2016,165092,200.12,STEVES PAINT LTD,A00119,5,2016
Allerdale Borough Council,16150,Supplies & Services,Town Centre Management,General Promotions,03/08/2016,165093,84.98,STEVES PAINT LTD,A00119,5,2016
Allerdale Borough Council,16101,Supplies & Services,Planning and Development,Statutory Notices,03/08/2016,165094,205.02,CUMBRIAN NEWSPAPERS LIMITED,A00869,5,2016
Allerdale Borough Council,14101,Transport,Homelessness,Vehicle Leasing,03/08/2016,165095,171.74,DOBIES VAUXHALL,A00254,5,2016
Allerdale Borough Council,16150,Supplies & Services,Town Centre Management,General Promotions,03/08/2016,165096,-55.24,STEVES PAINT LTD,A00119,5,2016
Allerdale Borough Council,99900,Suspense Acc,9599,Budget - SUSPENSE,10/08/2016,165097,500.00,Ewanrigg Local Trust,R00024,5,2016
Allerdale Borough Council,15101,Supplies & Services,Communications,Equipment Costs,24/08/2016,165098,"1,380.89",BARCLAYCARD COMMERCIAL,X00207,5,2016
Allerdale Borough Council,15101,Supplies & Services,New Ways of Working,Equipment Costs,24/08/2016,165099,389.94,BARCLAYCARD COMMERCIAL,X00207,5,2016
Allerdale Borough Council,15501,Supplies & Services,Planning Policy,Consultants Fees,10/08/2016,165100,"2,235.50",WYG ENVIRONMENT PLANNING TRANSPORT LTD,A01785,5,2016
Allerdale Borough Council,14202,Transport,Housing & Health Pay Group,Hire Car and petrol,10/08/2016,165101,42.08,ENTERPRISE RENT A CAR,A01367,5,2016
Allerdale Borough Council,12201,Premises,Corporate Property Maintenance,Internal Maintenance,10/08/2016,165102,450.00,Redacted information - included personal information ,A01470,5,2016
Allerdale Borough Council,51101,Capital Expenditure,New Leisure Facility,External Contractor Payments (Capital),17/08/2016,165103,"1,075.00",ASHCROFT PLANT (CUMBRIA) LTD,C00018,5,2016
Allerdale Borough Council,15201,Supplies & Services,Chief Executive,Entertainment Of Visitors,,165104,217.22,BARCLAYCARD COMMERCIAL,X00207,5,2016
Allerdale Borough Council,15502,Supplies & Services,Legal Services,Land Registry Fees,02/08/2016,165105,24.00,HM LAND REGISTRY ,A00505,5,2016
Allerdale Borough Council,15502,Supplies & Services,Legal Services,Land Registry Fees,24/08/2016,165106,111.00,HM LAND REGISTRY ,A00505,5,2016
Allerdale Borough Council,15502,Supplies & Services,Legal Services,Land Registry Fees,24/08/2016,165107,45.00,HM LAND REGISTRY ,A00505,5,2016
Allerdale Borough Council,81610,Balance Sheet,General Fund,Land Charges Provision,04/08/2016,165108,"22,692.75",BEVAN BRITTAN LLP,A02181,5,2016
Allerdale Borough Council,15101,Supplies & Services,Solway Wetlands Project,Equipment Costs,24/08/2016,165109,159.49,BARCLAYCARD COMMERCIAL,X00207,5,2016
Allerdale Borough Council,33112,Income,Planning and Development,Planning Fees Income,10/08/2016,165112,172.00,Redacted information - included personal information ,M00933,5,2016
Allerdale Borough Council,33112,Income,Planning and Development,Planning Fees Income,10/08/2016,165113,190.00,WD HARLEY LTD,M00936,5,2016
Allerdale Borough Council,33112,Income,Planning and Development,Planning Fees Income,10/08/2016,165114,172.00,HOLMES & HILLS LLP CLIENT A/C,M00935,5,2016
Allerdale Borough Council,16001,Supplies & Services,Banking and Interest,Bank Charges and Fees,24/08/2016,165115,20.87,ALLPAY.NET LIMITED,A00714,5,2016
Allerdale Borough Council,16001,Supplies & Services,Banking and Interest,Bank Charges and Fees,24/08/2016,165116,17.94,ALLPAY.NET LIMITED,A00714,5,2016
Allerdale Borough Council,16001,Supplies & Services,Banking and Interest,Bank Charges and Fees,07/09/2016,165117,27.77,ALLPAY.NET LIMITED,A00714,5,2016
Allerdale Borough Council,16001,Supplies & Services,Banking and Interest,Bank Charges and Fees,24/08/2016,165118,35.53,ALLPAY.NET LIMITED,A00714,5,2016
Allerdale Borough Council,16001,Supplies & Services,Banking and Interest,Bank Charges and Fees,24/08/2016,165119,45.02,ALLPAY.NET LIMITED,A00714,5,2016
Allerdale Borough Council,16001,Supplies & Services,Banking and Interest,Bank Charges and Fees,24/08/2016,165120,69.57,ALLPAY.NET LIMITED,A00714,5,2016
Allerdale Borough Council,16001,Supplies & Services,Banking and Interest,Bank Charges and Fees,24/08/2016,165121,15.27,ALLPAY.NET LIMITED,A00714,5,2016
Allerdale Borough Council,16001,Supplies & Services,Banking and Interest,Bank Charges and Fees,24/08/2016,165122,15.27,ALLPAY.NET LIMITED,A00714,5,2016
Allerdale Borough Council,16001,Supplies & Services,Banking and Interest,Bank Charges and Fees,24/08/2016,165123,15.27,ALLPAY.NET LIMITED,A00714,5,2016
Allerdale Borough Council,16001,Supplies & Services,Banking and Interest,Bank Charges and Fees,24/08/2016,165124,"1,702.73",ALLPAY.NET LIMITED,A00714,5,2016
Allerdale Borough Council,15101,Supplies & Services,Recycling,Equipment Costs,17/08/2016,165125,"16,727.49",BPI RECYCLED PRODUCTS,A00318,5,2016
Allerdale Borough Council,10401,Employee Costs,Environmental Services Pay Group,Agency Staff Costs,24/08/2016,165126,"2,120.00",PRACTICUS LTD,A02237,5,2016
Allerdale Borough Council,12405,Premises,Off-street - Owned,Rentals and Lease Charges,10/08/2016,165127,"9,738.59",BNP PARIBAS REAL ESTATE,A02353,5,2016
Allerdale Borough Council,12403,Premises,Homelessness,Gas,10/08/2016,165128,34.84,GAZPROM ENERGY,X00246,5,2016
Allerdale Borough Council,12403,Premises,Homelessness,Gas,10/08/2016,165129,46.92,GAZPROM ENERGY,X00246,5,2016
Allerdale Borough Council,12403,Premises,Homelessness,Gas,10/08/2016,165130,36.66,GAZPROM ENERGY,X00246,5,2016
Allerdale Borough Council,12403,Premises,Homelessness,Gas,10/08/2016,165131,52.56,GAZPROM ENERGY,X00246,5,2016
Allerdale Borough Council,16102,Supplies & Services,Town Centres,Regeneration Initiatives,31/08/2016,165132,"2,956.00",ISS WATERERS LANDSCAPE,C00044,5,2016
Allerdale Borough Council,52107,Capital Expenditure,Evolution Centre Food Bank Works,Removal Costs (Capital),10/08/2016,165133,868.00,Redacted information - included personal information ,C00008,5,2016
Allerdale Borough Council,12202,Premises,Public Convenience Cleaning,Electrical Repairs and Service,10/08/2016,165134,"2,163.30",J & J ELECTRICAL (CUMBRIA) LTD,C00038,5,2016
Allerdale Borough Council,12305,Premises,Corporate Property Maintenance,Inspections and Services,17/08/2016,165135,174.50,GILGEN DOOR SYSTEMS UK LTD,A00542,5,2016
Allerdale Borough Council,10401,Employee Costs,Building Control - Chargeable,Agency Staff Costs,10/08/2016,165136,"3,780.00",A&H BUILDING CONTROL CONSULTANTS LTD,A02318,5,2016
Allerdale Borough Council,33121,Income,Off-street - Owned,Excess Charges - Car Parks Income,10/08/2016,165137,3.20,Redacted information - included personal information ,M00937,5,2016
Allerdale Borough Council,15502,Supplies & Services,Legal Services,Land Registry Fees,09/08/2016,165138,45.00,HM LAND REGISTRY,A00505,5,2016
Allerdale Borough Council,15506,Supplies & Services,Corporate Improvement Team,Professional Services,10/08/2016,165139,35.00,INFORMATION COMMISSIONER,A01050,5,2016
Allerdale Borough Council,12201,Premises,Corporate Property Maintenance,Internal Maintenance,10/08/2016,165140,640.00,BARRIE HAIGH PAINTING CONTRACTOR,A01607,5,2016
Allerdale Borough Council,10601,Employee Costs,Training,External Courses & Seminar Fees,17/08/2016,165141,590.00,RICARDO-AEA LTD,A01816,5,2016
Allerdale Borough Council,16302,Supplies & Services,Members Services,Room Hire,10/08/2016,165142,90.00,GREENWICH LEISURE LTD (PREV CARLISLE LEISURE),A00136,5,2016
Allerdale Borough Council,15506,Supplies & Services,Housing & Health Pay Group,Professional Services,10/08/2016,165143,"1,752.32",JAMES ANDREW RECRUITMENT SOLUTIONS LTD,A02339,5,2016
Allerdale Borough Council,15506,Supplies & Services,Bereavement Services,Professional Services,10/08/2016,165144,310.00,INSTITUTE OF CEMETERY & CREMATORIUM MANAGEMENT,A00958,5,2016
Allerdale Borough Council,15101,Supplies & Services,Public Building Cleaning,Equipment Costs,10/08/2016,165145,570.00,INSTOCK (CHANDLERS),A00050,5,2016
Allerdale Borough Council,10401,Employee Costs,Elections,Agency Staff Costs,10/08/2016,165146,"12,995.00",ASSOCIATION OF ELECTORAL ADMIN,A00189,5,2016
Allerdale Borough Council,15506,Supplies & Services,Environmental Protection,Professional Services,17/08/2016,165147,583.90,UNITED UTILITIES PLC,A01657,5,2016
Allerdale Borough Council,12201,Premises,Homelessness,Internal Maintenance,10/08/2016,165148,134.00,DERWENT & SOLWAY - YOUR HOUSING,A00219,5,2016
Allerdale Borough Council,12201,Premises,Homelessness,Internal Maintenance,10/08/2016,165149,238.00,AA CARPETS LTD,C00031,5,2016
Allerdale Borough Council,15506,Supplies & Services,Housing & Health Pay Group,Professional Services,10/08/2016,165150,"1,752.32",JAMES ANDREW RECRUITMENT SOLUTIONS LTD,A02339,5,2016
Allerdale Borough Council,15501,Supplies & Services,Parks and Grounds Maintenance,Consultants Fees,24/08/2016,165151,"1,967.50",LAND AND WATER SERVICES,C00130,5,2016
Allerdale Borough Council,15506,Supplies & Services,Corporate Improvement Team,Professional Services,10/08/2016,165152,14.85,LANGUAGE LINE SERVICES,A00018,5,2016
Allerdale Borough Council,12303,Premises,Corporate Property Maintenance,Window Cleaning,10/08/2016,165153,470.00,BORDERBRITE LTD,C00155,5,2016
Allerdale Borough Council,16100,Supplies & Services,Communications and Marketing,Budget-Advertising and Promotions,10/08/2016,165154,132.00,CUMBRIAN NEWSPAPERS LIMITED,A00869,5,2016
Allerdale Borough Council,16150,Supplies & Services,Town Centre Management,General Promotions,10/08/2016,165155,380.00,POD (NORTH WEST) LIMITED,A01977,5,2016
Allerdale Borough Council,15508,Supplies & Services,KMAG Enhancement Activity,Subscriptions,10/08/2016,165156,51.00,GEM,A02006,5,2016
Allerdale Borough Council,14150,Transport,Gates Travel,General-Council Vehicles (Non-Capital),24/08/2016,165157,730.95,GATES TRAVEL,A01525,5,2016
Allerdale Borough Council,34150,Income,Economic Regeneration,General Recovery of Other Costs-Income,24/08/2016,165158,"4,800.00",BROADBAND ACCESS STRATEGIES LLP,A02051,5,2016
Allerdale Borough Council,15401,Supplies & Services,Document Management Pay Group,General Stationery,24/08/2016,165159,143.21,LYRECO,A00043,5,2016
Allerdale Borough Council,15401,Supplies & Services,Document Management Pay Group,General Stationery,24/08/2016,165160,77.95,LYRECO,A00043,5,2016
Allerdale Borough Council,15401,Supplies & Services,Document Management Pay Group,General Stationery,24/08/2016,165161,340.17,LYRECO,A00043,5,2016
Allerdale Borough Council,15401,Supplies & Services,Document Management Pay Group,General Stationery,24/08/2016,165162,50.23,LYRECO,A00043,5,2016
Allerdale Borough Council,15401,Supplies & Services,Document Management Pay Group,General Stationery,24/08/2016,165163,55.47,LYRECO,A00043,5,2016
Allerdale Borough Council,15401,Supplies & Services,Document Management Pay Group,General Stationery,24/08/2016,165164,116.05,LYRECO,A00043,5,2016
Allerdale Borough Council,15101,Supplies & Services,Public Building Cleaning,Equipment Costs,10/08/2016,165165,9.94,WF HYGIENE & CLEANING SUPPLIES,A01794,5,2016
Allerdale Borough Council,14104,Transport,Public Convenience Cleaning,Repairs & Maintenance,10/08/2016,165166,40.83,GOODFELLOW & SONS,A00031,5,2016
Allerdale Borough Council,16150,Supplies & Services,"The Hub, Workington Town Centre",General Promotions,10/08/2016,165167,200.00,Redacted information - included personal information ,A01408,5,2016
Allerdale Borough Council,15201,Supplies & Services,Chief Executive,Entertainment Of Visitors,17/08/2016,165168,39.60,AL'S KITCHEN LTD,A00187,5,2016
Allerdale Borough Council,16150,Supplies & Services,Solway Coast AONB Core Funding,General Promotions,31/08/2016,165169,"2,000.00",Redacted information - included personal information ,A02346,5,2016
Allerdale Borough Council,16150,Supplies & Services,Town Centre Management,General Promotions,10/08/2016,165170,"1,100.00",CUMBRIAN NEWSPAPERS LIMITED,A00869,5,2016
Allerdale Borough Council,16150,Supplies & Services,Town Centre Management,General Promotions,10/08/2016,165171,560.00,CUMBRIAN NEWSPAPERS LIMITED,A00869,5,2016
Allerdale Borough Council,21150,Transfer Payments,Solway Wetlands Project,General Grants,10/08/2016,165172,"18,000.00",EARTH BUILDING UK & IRELAND,A02341,5,2016
Allerdale Borough Council,15810,Supplies & Services,IT Services,Software Licences,24/08/2016,165173,605.00,OTECH LTD,A00141,5,2016
Allerdale Borough Council,20150,Third Party Payments,Footways,General Partnership Service Fees,24/08/2016,165174,926.00,ELECTRICITY NORTH WEST LTD,A00471,5,2016
Allerdale Borough Council,15101,Supplies & Services,Building Control - Chargeable,Equipment Costs,24/08/2016,165175,172.75,YORK SURVEY SUPPLY CENTRE LTD,A01960,5,2016
Allerdale Borough Council,26000,Earmarked Reserves,Shared Revs & Bens Projects,Budget-Expd funded from Reserve,10/08/2016,165176,827.58,MORGAN HUNT PUBLIC SECTOR,A00725,5,2016
Allerdale Borough Council,99900,Suspense Acc,9599,Budget - SUSPENSE,10/08/2016,165178,20.00,Redacted information - included personal information ,R00025,5,2016
Allerdale Borough Council,20111,Third Party Payments,Anti Poverty,Voluntary Organisations,21/09/2016,165179,300.00,BECKSTONE PRIMARY SCHOOL,A01693,5,2016
Allerdale Borough Council,15103,Supplies & Services,Solway Wetlands Project,Purchase of Materials,10/08/2016,165180,37.00,TRAVIS PERKINS TRADING,A01117,5,2016
Allerdale Borough Council,15501,Supplies & Services,Solway Wetlands Project,Consultants Fees,10/08/2016,165181,350.00,Redacted information - included personal information ,C00172,5,2016
Allerdale Borough Council,15402,Supplies & Services,Customer Services Pay Group,Photocopier Charges,10/08/2016,165182,164.21,RICOH UK LTD,A00037,5,2016
Allerdale Borough Council,16350,Supplies & Services,Chief Executive,Miscellaneous Expenses,17/08/2016,165183,102.75,KELTIC,A00017,5,2016
Allerdale Borough Council,37101,Income,Customer Services Pay Group,Salary Recharges Income,10/08/2016,165184,517.26,ADECCO RECRUITMENT,A00188,5,2016
Allerdale Borough Council,37101,Income,Customer Services Pay Group,Salary Recharges Income,10/08/2016,165185,517.26,ADECCO RECRUITMENT,A00188,5,2016
Allerdale Borough Council,15501,Supplies & Services,Solway Wetlands Project,Consultants Fees,24/08/2016,165186,"1,750.00",Redacted information - included personal information ,A02265,5,2016
Allerdale Borough Council,15501,Supplies & Services,Estates,Consultants Fees,10/08/2016,165187,960.00,JAMES ANDREW RECRUITMENT SOLUTIONS LTD,A02339,5,2016
Allerdale Borough Council,15501,Supplies & Services,Estates,Consultants Fees,10/08/2016,165188,"2,300.00",JAMES ANDREW RECRUITMENT SOLUTIONS LTD,A02339,5,2016
Allerdale Borough Council,12403,Premises,Homelessness,Gas,10/08/2016,165189,96.00,MEPOS LIMITED,A01286,5,2016
Allerdale Borough Council,10110,Employee Costs,Busy Bees Childcare Scheme,Salary Sacrifice,17/08/2016,165190,105.30,COMPUTERSHARE VOUCHER SERVICES,A00991,5,2016
Allerdale Borough Council,10110,Employee Costs,Busy Bees Childcare Scheme,Salary Sacrifice,17/08/2016,165191,"1,914.50",COMPUTERSHARE VOUCHER SERVICES,A00991,5,2016
Allerdale Borough Council,15101,Supplies & Services,Solway Wetlands Project,Equipment Costs,10/08/2016,165192,105.00,ASHTEAD PLANT HIRE CO LTD,C00019,5,2016
Allerdale Borough Council,15101,Supplies & Services,Solway Wetlands Project,Equipment Costs,10/08/2016,165193,110.00,ASHTEAD PLANT HIRE CO LTD,C00019,5,2016
Allerdale Borough Council,15101,Supplies & Services,Solway Wetlands Project,Equipment Costs,10/08/2016,165194,880.00,ASHTEAD PLANT HIRE CO LTD,C00019,5,2016
Allerdale Borough Council,15101,Supplies & Services,Solway Wetlands Project,Equipment Costs,10/08/2016,165195,110.00,ASHTEAD PLANT HIRE CO LTD,C00019,5,2016
Allerdale Borough Council,15506,Supplies & Services,Sports Development,Professional Services,10/08/2016,165196,300.00,SOLWAY COMMUNITY TECHNOLOGY COLLEGE (SPORTS HALL),M00118,5,2016
Allerdale Borough Council,15506,Supplies & Services,Sports Development,Professional Services,10/08/2016,165197,250.00,Redacted information - included personal information ,A02330,5,2016
Allerdale Borough Council,16150,Supplies & Services,KMAG Enhancement Activity,General Promotions,10/08/2016,165198,170.10,CUMBERLAND & WESTMORLAND HERALD,A02031,5,2016
Allerdale Borough Council,16301,Supplies & Services,KMAG Enhancement Activity,Reimbursement,10/08/2016,165199,"1,144.44",KESWICK MUSEUM & ART GALLERY,A00337,5,2016
Allerdale Borough Council,15506,Supplies & Services,Sports Development,Professional Services,10/08/2016,165200,105.00,Redacted information - included personal information ,A02344,5,2016
Allerdale Borough Council,15506,Supplies & Services,Sports Development,Professional Services,10/08/2016,165201,105.00,Redacted information - included personal information ,A02344,5,2016
Allerdale Borough Council,33112,Income,Planning and Development,Planning Fees Income,10/08/2016,165202,"2,310.00",WOODGLEN DIRECT LTD,M00938,5,2016
Allerdale Borough Council,21150,Transfer Payments,Festivals & Events,General Grants,10/08/2016,165203,500.00,WORKINGTON TOWN COUNCIL,A01615,5,2016
Allerdale Borough Council,21150,Transfer Payments,Festivals & Events,General Grants,24/08/2016,165204,740.00,WIGTON TOWN COUNCIL,M00517,5,2016
Allerdale Borough Council,21150,Transfer Payments,Festivals & Events,General Grants,10/08/2016,165205,"1,000.00",MARYPORT FESTIVALS LTD,A00338,5,2016
Allerdale Borough Council,15502,Supplies & Services,Legal Services,Land Registry Fees,11/08/2016,165206,69.00,HM LAND REGISTRY,A00505,5,2016
Allerdale Borough Council,14200,Transport,Communications,Budget-Travel,10/08/2016,165207,57.00,EILBECK RENTAL,A01161,5,2016
Allerdale Borough Council,14200,Transport,Communications,Budget-Travel,10/08/2016,165208,53.67,EILBECK RENTAL,A01161,5,2016
Allerdale Borough Council,16100,Supplies & Services,Communications and Marketing,Budget-Advertising and Promotions,10/08/2016,165209,96.50,FIRPRESS PRINTERS,A00063,5,2016
Allerdale Borough Council,16100,Supplies & Services,Communications and Marketing,Budget-Advertising and Promotions,10/08/2016,165210,123.00,FIRPRESS PRINTERS,A00063,5,2016
Allerdale Borough Council,16100,Supplies & Services,Communications and Marketing,Budget-Advertising and Promotions,10/08/2016,165211,45.00,FIRPRESS PRINTERS,A00063,5,2016
Allerdale Borough Council,16302,Supplies & Services,Corporate Improvement Team,Room Hire,10/08/2016,165212,230.50,ST MICHAELS CHURCH,A00452,5,2016
Allerdale Borough Council,14101,Transport,Mayoral Services,Vehicle Leasing,10/08/2016,165213,130.00,ACE TAXIS,A01927,5,2016
Allerdale Borough Council,15810,Supplies & Services,IT Services,Software Licences,31/08/2016,165214,334.00,DATA INTERCHANGE PLC,A01316,5,2016
Allerdale Borough Council,15602,Supplies & Services,EU Referendum,Business Reply Licences,10/08/2016,165215,"2,182.43",ROYAL MAIL LETTERS,X00021,5,2016
Allerdale Borough Council,15506,Supplies & Services,Shared Revs & Bens IT Costs,Professional Services,10/08/2016,165216,"4,763.74",CARLISLE CITY COUNCIL,A00161,5,2016
Allerdale Borough Council,15803,Supplies & Services,IT Services,Hardware Purchase,24/08/2016,165217,"49,113.19",INSIGHT DIRECT (UK) LTD,A00054,5,2016
Allerdale Borough Council,15403,Supplies & Services,Chief Executive,Publications and Periodicals,10/08/2016,165218,20.40,P & D NEWSAGENTS,A00237,5,2016
Allerdale Borough Council,12501,Premises,Off-street - Owned,NNDR and Other Occupancy Charges,10/08/2016,165219,387.75,SOLWAY PLAIN FUTURES LTD,A01194,5,2016
Allerdale Borough Council,15405,Supplies & Services,Off-street - Owned,Use of External Printers,10/08/2016,165220,70.00,NAGELS UK LTD,A01182,5,2016
Allerdale Borough Council,15405,Supplies & Services,Off-street - Owned,Use of External Printers,10/08/2016,165221,"6,170.00",FIRPRESS PRINTERS,A00063,5,2016
Allerdale Borough Council,15102,Supplies & Services,Off-street - Owned,Equipment Repair & Maintenance,10/08/2016,165222,"1,995.00",PARKING INFRASTRUCTURE SERVICES UK,A01343,5,2016
Allerdale Borough Council,16302,Supplies & Services,Sports Development,Room Hire,17/08/2016,165223,80.00,ALL SOULS PAROCHIAL CHURC COUNCIL,A02336,5,2016
Allerdale Borough Council,15506,Supplies & Services,Sports Development,Professional Services,10/08/2016,165224,140.00,THE SELF COACH,A02328,5,2016
Allerdale Borough Council,16150,Supplies & Services,KMAG Enhancement Activity,General Promotions,10/08/2016,165225,65.80,MCKANES PRINTERS,A01507,5,2016
Allerdale Borough Council,15104,Supplies & Services,Bereavement Services,Supplies for Resale,10/08/2016,165226,57.00,GRANART,A00644,5,2016
Allerdale Borough Council,15506,Supplies & Services,Food and Occupational Health,Professional Services,24/08/2016,165227,150.36,PUBLIC HEALTH ENGLAND,A01839,5,2016
Allerdale Borough Council,52107,Capital Expenditure,Evolution Centre Food Bank Works,Removal Costs (Capital),10/08/2016,165228,934.00,Redacted information - included personal information ,C00008,5,2016
Allerdale Borough Council,15506,Supplies & Services,Legal Services,Professional Services,24/08/2016,165229,165.00,FREETH CARTWRIGHT LLP,A01821,5,2016
Allerdale Borough Council,16102,Supplies & Services,LEP Flood Recovery Events Funding,Regeneration Initiatives,17/08/2016,165230,"15,000.00",CN EVENTS MANAGEMENT,A01099,5,2016
Allerdale Borough Council,14104,Transport,Parking Services Pay Group,Repairs & Maintenance,10/08/2016,165231,74.44,FCC ENVIRONMENT SERVICES (FOCSA),A00085,5,2016
Allerdale Borough Council,12301,Premises,Crime Prevention,Security,10/08/2016,165232,74.91,BRITISH TELECOMMUNICATIONS,X00004,5,2016
Allerdale Borough Council,12301,Premises,Crime Prevention,Security,10/08/2016,165233,130.09,EON ,X00017,5,2016
Allerdale Borough Council,15702,Supplies & Services,Off-street - Owned,Line Rentals,24/08/2016,165234,"1,596.53",COBALT TELEPHONE TECHNOLOGY,A01008,5,2016
Allerdale Borough Council,14102,Transport,Parking Services Pay Group,Vehicle Excise Licences,,165235,"1,001.48",BARCLAYCARD COMMERCIAL,X00207,5,2016
Allerdale Borough Council,73102,Holding and Control Accounts,Returnable Deposits on Commercial Prop,Holding Accounts General - Expenditure,17/08/2016,165236,194.69,ALLERDALE,A00342,5,2016
Allerdale Borough Council,33121,Income,Off-street - Owned,Excess Charges - Car Parks Income,17/08/2016,165237,4.00,Redacted information - included personal information ,M00939,5,2016
Allerdale Borough Council,33121,Income,Off-street - Owned,Excess Charges - Car Parks Income,17/08/2016,165238,8.00,Redacted information - included personal information ,M00940,5,2016
Allerdale Borough Council,73102,Holding and Control Accounts,Returnable Deposits on Commercial Prop,Holding Accounts General - Expenditure,17/08/2016,165239,430.31,Redacted information - included personal information ,M00941,5,2016
Allerdale Borough Council,34150,Income,Allerdale Options,General Recovery of Other Costs-Income,24/08/2016,165240,667.21,BARCLAYCARD COMMERCIAL,X00207,5,2016
Allerdale Borough Council,15850,Supplies & Services,IT Services,General Computer Costs,24/08/2016,165241,50.00,BARCLAYCARD COMMERCIAL ,X00207,5,2016
Allerdale Borough Council,21150,Transfer Payments,Leaders Portfolio,General Grants,17/08/2016,165242,"1,000.00",WKTNTOWNBOYSANDGIRLSCLUB,M00942,5,2016
Allerdale Borough Council,14105,Transport,Asset Management Pay Group,"Fuel, Lubricants & Consumables",,165243,267.17,BP OIL UK LTD,X00022,5,2016
Allerdale Borough Council,14105,Transport,Parking Services Pay Group,"Fuel, Lubricants & Consumables",,165244,417.17,BP OIL UK LTD,X00022,5,2016
Allerdale Borough Council,14105,Transport,Parking Services Pay Group,"Fuel, Lubricants & Consumables",,165245,540.00,BP OIL UK LTD,X00022,5,2016
Allerdale Borough Council,54104,Capital Expenditure,Housing Improvement Projects,Gen Grants Private Individuals (Captial),17/08/2016,165246,200.00,Redacted information - included personal information ,M00943,5,2016
Allerdale Borough Council,54104,Capital Expenditure,Housing Improvement Projects,Gen Grants Private Individuals (Captial),17/08/2016,165247,200.00,Redacted information - included personal information ,M00944,5,2016
Allerdale Borough Council,14101,Transport,Shared IT Services Pay Group,Vehicle Leasing,07/09/2016,165248,199.00,ARNOLD CLARK FINANCE LIMITED,A01781,5,2016
Allerdale Borough Council,10401,Employee Costs,Shared IT Services Pay Group,Agency Staff Costs,17/08/2016,165249,48.93,ADECCO RECRUITMENT,A00188,5,2016
Allerdale Borough Council,10401,Employee Costs,Shared IT Services Pay Group,Agency Staff Costs,17/08/2016,165250,415.91,ADECCO RECRUITMENT,A00188,5,2016
Allerdale Borough Council,15811,Supplies & Services,IT Services,Software Maintenance,24/08/2016,165251,"26,148.55",CIVICA UK LIMITED,A00006,5,2016
Allerdale Borough Council,15401,Supplies & Services,Building Control - Chargeable,General Stationery,17/08/2016,165252,61.70,HEATONS OFFICE SOLUTION (PREV LAKELAND/INTEGRITY),A00069,5,2016
Allerdale Borough Council,10401,Employee Costs,Building Control - Chargeable,Agency Staff Costs,17/08/2016,165253,"2,345.00",A&H BUILDING CONTROL CONSULTANTS LTD,A02318,5,2016
Allerdale Borough Council,15101,Supplies & Services,Public Building Cleaning,Equipment Costs,17/08/2016,165254,124.47,WF HYGIENE & CLEANING SUPPLIES,A01794,5,2016
Allerdale Borough Council,15501,Supplies & Services,Revenue,Consultants Fees,17/08/2016,165255,"15,733.50",CAPACITYGRID T/A LIBERATA UK LTD,C00122,5,2016
Allerdale Borough Council,26000,Earmarked Reserves,Shared Revs & Bens Projects,Budget-Expd funded from Reserve,17/08/2016,165256,992.16,MORGAN HUNT PUBLIC SECTOR,A00725,5,2016
Allerdale Borough Council,54104,Capital Expenditure,Housing Improvement Projects,Gen Grants Private Individuals (Captial),17/08/2016,165257,200.00,Redacted information - included personal information ,M00945,5,2016
Allerdale Borough Council,16350,Supplies & Services,Homelessness,Miscellaneous Expenses,17/08/2016,165258,160.00,Redacted information - included personal information ,X00188,5,2016
Allerdale Borough Council,15101,Supplies & Services,Solway Wetlands Project,Equipment Costs,17/08/2016,165259,600.20,ASHTEAD PLANT HIRE CO LTD,C00019,5,2016
Allerdale Borough Council,14202,Transport,Housing & Health Pay Group,Hire Car and petrol,17/08/2016,165260,39.79,ENTERPRISE RENT A CAR,A01367,5,2016
Allerdale Borough Council,15101,Supplies & Services,Solway Wetlands Project,Equipment Costs,17/08/2016,165261,41.60,ASHTEAD PLANT HIRE CO LTD,C00019,5,2016
Allerdale Borough Council,15103,Supplies & Services,Solway Wetlands Project,Purchase of Materials,17/08/2016,165262,381.23,TRAVIS PERKINS TRADING,A01117,5,2016
Allerdale Borough Council,15811,Supplies & Services,Shared Revs & Bens IT Costs,Software Maintenance,17/08/2016,165263,"84,504.21",CAPITA BUSINESS SERVICES LTD,A01027,5,2016
Allerdale Borough Council,81606,Balance Sheet,General Fund,Provisions-Curwen Land Slip (BSheet),24/08/2016,165264,"3,803.75",WYG ENGINEERING LTD,A00155,5,2016
Allerdale Borough Council,10401,Employee Costs,Environmental Services Pay Group,Agency Staff Costs,31/08/2016,165265,"2,120.00",PRACTICUS LTD,A02237,5,2016
Allerdale Borough Council,12309,Premises,Corporate Property Maintenance,Fire and Safety,17/08/2016,165266,120.00,CUMBRIAN SYSTEMS,C00062,5,2016
Allerdale Borough Council,16102,Supplies & Services,Town Centre Management,Regeneration Initiatives,17/08/2016,165267,166.47,NEWSQUEST MEDIA GROUP,A02348,5,2016
Allerdale Borough Council,15101,Supplies & Services,Solway Wetlands Project,Equipment Costs,17/08/2016,165268,111.03,DWN LTD T/A THE DASH GROUP,A02024,5,2016
Allerdale Borough Council,15101,Supplies & Services,Solway Wetlands Project,Equipment Costs,17/08/2016,165269,11.61,DWN LTD T/A THE DASH GROUP,A02024,5,2016
Allerdale Borough Council,10401,Employee Costs,Environmental Services Pay Group,Agency Staff Costs,07/09/2016,165270,"2,120.00",PRACTICUS LTD,A02237,5,2016
Allerdale Borough Council,54105,Capital Expenditure,Disabled Facilities Grants,Grants  Private Individuals (Capital),17/08/2016,165271,"1,375.00",Redacted information - included personal information ,X00196,5,2016
Allerdale Borough Council,15601,Supplies & Services,Revenue,Postage,17/08/2016,165272,260.00,ROYAL MAIL LETTERS,X00021,5,2016
Allerdale Borough Council,15703,Supplies & Services,IT Services,Call Charges,24/08/2016,165273,"1,007.61",VODAFONE (PREV CABLE & WIRELESS),A00934,5,2016
Allerdale Borough Council,12408,Premises,Public Convenience Cleaning,Water & Sewage,17/08/2016,165274,360.16,UNITED UTILITIES,X00011,5,2016
Allerdale Borough Council,15501,Supplies & Services,Revenue,Consultants Fees,17/08/2016,165275,33.18,ROSSENDALES LTD,A00964,5,2016
Allerdale Borough Council,12403,Premises,Corporate Property Maintenance,Gas,17/08/2016,165276,53.59,BRITISH GAS ,X00039,5,2016
Allerdale Borough Council,12402,Premises,Corporate Property Maintenance,Electricity,17/08/2016,165277,19.06,BRITISH GAS,X00039,5,2016
Allerdale Borough Council,12402,Premises,Car Parks Inspection & Maintenance,Electricity,17/08/2016,165278,84.61,N POWER,X00015,5,2016
Allerdale Borough Council,12402,Premises,Corporate Property Maintenance,Electricity,17/08/2016,165279,469.23,N POWER ,X00015,5,2016
Allerdale Borough Council,12408,Premises,Corporate Property Maintenance,Water & Sewage,17/08/2016,165280,12.33,UNITED UTILITIES,X00011,5,2016
Allerdale Borough Council,15804,Supplies & Services,IT Services,Computer Data Lines B.T.,31/08/2016,165281,"1,668.54",VODAFONE (PREV CABLE & WIRELESS),A00934,5,2016
Allerdale Borough Council,15501,Supplies & Services,Revenue,Consultants Fees,24/08/2016,165282,15.00,ROSSENDALES LTD,A00964,5,2016
Allerdale Borough Council,15600,Supplies & Services,Electoral Registration,Budget-Postal Services,17/08/2016,165283,35.52,ROYAL MAIL LETTERS,X00021,5,2016
Allerdale Borough Council,12402,Premises,Corporate Property Maintenance,Electricity,17/08/2016,165284,436.68,SOUTHERN ELECTRIC,X00018,5,2016
Allerdale Borough Council,12408,Premises,Corporate Property Maintenance,Water & Sewage,17/08/2016,165285,399.53,UNITED UTILITIES ,X00011,5,2016
Allerdale Borough Council,15502,Supplies & Services,Legal Services,Land Registry Fees,16/08/2016,165286,48.00,HM LAND REGISTRY ,A00505,5,2016
Allerdale Borough Council,15808,Supplies & Services,Multi-functional Printers,Computer Consumables,17/08/2016,165287,211.00,ANTALIS LIMITED,A00122,5,2016
Allerdale Borough Council,15501,Supplies & Services,Estates,Consultants Fees,17/08/2016,165288,"2,300.00",JAMES ANDREW RECRUITMENT SOLUTIONS LTD,A02339,5,2016
Allerdale Borough Council,12305,Premises,Corporate Property Maintenance,Inspections and Services,17/08/2016,165289,590.00,BORDER FOOD MACHINERY,A00388,5,2016
Allerdale Borough Council,12103,Premises,Coastal Protection and Inland Flooding,Grounds Maintenance,17/08/2016,165290,"3,430.00",MPM NORTH WEST LIMITED,A00113,5,2016
Allerdale Borough Council,12101,Premises,Public Convenience Cleaning,External Maintenance & Decoration,07/09/2016,165291,"1,295.00",NPS NORTH WEST LTD,A01708,5,2016
Allerdale Borough Council,15506,Supplies & Services,Legal Services,Professional Services,17/08/2016,165292,"2,600.00",18 ST JOHN ST CHAMBERS,A01923,5,2016
Allerdale Borough Council,10600,Employee Costs,Shared Revs & Bens Projects,Budget-Training,17/08/2016,165293,"1,800.00",CAPITA BUSINESS SERVICES LTD,A01027,5,2016
Allerdale Borough Council,10401,Employee Costs,Elections,Agency Staff Costs,31/08/2016,165294,"6,209.20",ASSOCIATION OF ELECTORAL ADMIN,A00189,5,2016
Allerdale Borough Council,15303,Supplies & Services,Food and Occupational Health,Laundry,17/08/2016,165295,104.92,BERENDSEN UK LTD,A00027,5,2016
Allerdale Borough Council,15505,Supplies & Services,Planning and Development,Licences,24/08/2016,165296,23.70,CENTREMAPS,A00512,5,2016
Allerdale Borough Council,10401,Employee Costs,Shared IT Services Pay Group,Agency Staff Costs,17/08/2016,165297,576.68,ADECCO RECRUITMENT,A00188,5,2016
Allerdale Borough Council,15203,Supplies & Services,Members Services,Catering Costs and Consumables,17/08/2016,165298,58.50,MAGGIES BAKERY,A01685,5,2016
Allerdale Borough Council,15506,Supplies & Services,Food and Occupational Health,Professional Services,17/08/2016,165299,235.00,MPM NORTH WEST LIMITED,A00113,5,2016
Allerdale Borough Council,10401,Employee Costs,Shared IT Services Pay Group,Agency Staff Costs,24/08/2016,165300,419.40,ADECCO RECRUITMENT,A00188,5,2016
Allerdale Borough Council,72104,Holding and Control Accounts,Debtor Control Account,Debtors (Control Account),17/08/2016,165301,181.82,Redacted information - included personal information ,M00946,5,2016
Allerdale Borough Council,33119,Income,Off-street - Owned,Car Parks - Reserved Places Income,17/08/2016,165302,"1,406.25",WORKINGTON TOWN COUNCIL,A01615,5,2016
Allerdale Borough Council,15501,Supplies & Services,Parks Development,Consultants Fees,07/09/2016,165303,300.00,LEEMING ASSOCIATES,A02264,5,2016
Allerdale Borough Council,15507,Supplies & Services,Land Charges Service,Searches,17/08/2016,165304,"1,680.00",LAKE DISTRICT NATIONAL PARK AUTHORITY,A00415,5,2016
Allerdale Borough Council,16101,Supplies & Services,Planning and Development,Statutory Notices,17/08/2016,165305,373.97,CUMBRIAN NEWSPAPERS LIMITED,A00869,5,2016
Allerdale Borough Council,15550,Supplies & Services,Licensing Service,General-Service Related Fees,24/08/2016,165306,24.00,ORBIS PROTECT LTD (PREV SITEXORBIS LIMITED),A00679,5,2016
Allerdale Borough Council,16102,Supplies & Services,Town Centre Management,Regeneration Initiatives,17/08/2016,165307,-15.00,NEWSQUEST MEDIA GROUP,A02348,5,2016
Allerdale Borough Council,33112,Income,Planning and Development,Planning Fees Income,24/08/2016,165308,30.00,GMB DEVELOPMENTS LTD,C00094,5,2016
Allerdale Borough Council,21150,Transfer Payments,Carnegie Trust Contribution,General Grants,24/08/2016,165309,"33,750.00",Carnegie Theatre Trust,R00015,5,2016
Allerdale Borough Council,21150,Transfer Payments,Carnegie Trust Contribution,General Grants,24/08/2016,165310,"11,250.00",Carnegie Theatre Trust,R00015,5,2016
Allerdale Borough Council,15508,Supplies & Services,Human Resources Pay Group,Subscriptions,07/09/2016,165311,200.00,NORTH WEST EMPLOYERS,A00139,5,2016
Allerdale Borough Council,15101,Supplies & Services,Homelessness,Equipment Costs,24/08/2016,165313,45.44,ALLERDALE BOROUGH COUNCIL,X00034,5,2016
Allerdale Borough Council,21150,Transfer Payments,Solway Wetlands Project,General Grants,24/08/2016,165314,"2,000.00",EARTH BUILDING UK & IRELAND,A02341,5,2016
Allerdale Borough Council,15514,Supplies & Services,Mayor's Fund,Public Entertainment,24/08/2016,165315,10.80,P & D NEWSAGENTS,A00237,5,2016
Allerdale Borough Council,15603,Supplies & Services,Document Management Pay Group,Franking Machine Costs,31/08/2016,165316,300.00,THE MAILING ROOM (TMR EXECUTIVE AGENCY LTD),A00733,5,2016
Allerdale Borough Council,15102,Supplies & Services,Recycling,Equipment Repair & Maintenance,24/08/2016,165317,285.00,Redacted information - included personal information ,A00176,5,2016
Allerdale Borough Council,15102,Supplies & Services,Recycling,Equipment Repair & Maintenance,24/08/2016,165318,756.90,Redacted information - included personal information ,A00176,5,2016
Allerdale Borough Council,16350,Supplies & Services,Mayors Charity,Miscellaneous Expenses,24/08/2016,165319,75.00,FIRPRESS PRINTERS,A00063,5,2016
Allerdale Borough Council,15103,Supplies & Services,Solway Coast AONB Core Funding,Purchase of Materials,24/08/2016,165320,7.50,ASPATRIA FARMERS LIMITED,A00736,5,2016
Allerdale Borough Council,15103,Supplies & Services,Health and Safety,Purchase of Materials,14/09/2016,165321,"3,542.00",DEFIBSHOP,A02054,5,2016
Allerdale Borough Council,16101,Supplies & Services,Planning and Development,Statutory Notices,24/08/2016,165322,533.05,CUMBRIAN NEWSPAPERS LIMITED,A00869,5,2016
Allerdale Borough Council,16101,Supplies & Services,Planning and Development,Statutory Notices,24/08/2016,165323,771.31,CUMBRIAN NEWSPAPERS LIMITED,A00869,5,2016
Allerdale Borough Council,15405,Supplies & Services,Npower Energy Efficiency Programme,Use of External Printers,31/08/2016,165324,390.00,FIRPRESS PRINTERS,A00063,5,2016
Allerdale Borough Council,15101,Supplies & Services,Solway Wetlands Project,Equipment Costs,24/08/2016,165325,105.00,ASHTEAD PLANT HIRE CO LTD,C00019,5,2016
Allerdale Borough Council,10401,Employee Costs,Environmental Services Pay Group,Agency Staff Costs,14/09/2016,165326,"2,120.00",PRACTICUS LTD,A02237,5,2016
Allerdale Borough Council,26000,Earmarked Reserves,Shared Revs & Bens Projects,Budget-Expd funded from Reserve,24/08/2016,165327,988.00,MORGAN HUNT PUBLIC SECTOR,A00725,5,2016
Allerdale Borough Council,15501,Supplies & Services,Homelessness,Consultants Fees,24/08/2016,165328,50.00,SOLWAY MEDICAL SERVICES,A00588,5,2016
Allerdale Borough Council,16150,Supplies & Services,Sports Development,General Promotions,24/08/2016,165329,957.00,WIGTON BATHS TRUST,M00604,5,2016
Allerdale Borough Council,15401,Supplies & Services,Planning and Development,General Stationery,24/08/2016,165330,28.04,HEATONS OFFICE SOLUTION (PREV LAKELAND/INTEGRITY),A00069,5,2016
Allerdale Borough Council,15401,Supplies & Services,Planning and Development,General Stationery,24/08/2016,165331,19.10,HEATONS OFFICE SOLUTION (PREV LAKELAND/INTEGRITY),A00069,5,2016
Allerdale Borough Council,26000,Earmarked Reserves,Economic Regeneration,Budget-Expd funded from Reserve,07/09/2016,165332,"1,930.00",MOTT MACDONALD LTD,C00161,5,2016
Allerdale Borough Council,15301,Supplies & Services,Communications and Marketing,Uniforms,31/08/2016,165333,5.85,K&R BADGES LIMITED,A01328,5,2016
Allerdale Borough Council,15501,Supplies & Services,Homelessness,Consultants Fees,24/08/2016,165334,40.00,OXFORD STREET SURGERY,A00418,5,2016
Allerdale Borough Council,15513,Supplies & Services,High Level Stewardship,Subcontractors - General,24/08/2016,165335,"12,189.21",PROPERTY & LANDSCAPE SERVICES LTD,C00173,5,2016
Allerdale Borough Council,33112,Income,Planning and Development,Planning Fees Income,24/08/2016,165336,195.00,DAY CUMMINS LIMITED,A00131,5,2016
Allerdale Borough Council,33112,Income,Planning and Development,Planning Fees Income,24/08/2016,165337,98.00,Redacted information - included personal information ,M00947,5,2016
Allerdale Borough Council,33112,Income,Planning and Development,Planning Fees Income,24/08/2016,165338,385.00,Redacted information - included personal information ,M00948,5,2016
Allerdale Borough Council,12305,Premises,Corporate Property Maintenance,Inspections and Services,31/08/2016,165339,208.50,TYCO FIRE&INTEGRATED SOLUTIONS,A00773,5,2016
Allerdale Borough Council,12101,Premises,Corporate Property Maintenance,External Maintenance & Decoration,24/08/2016,165340,"4,180.00",PATON BROS SCAFFOLDING LTD,C00009,5,2016
Allerdale Borough Council,14104,Transport,Public Convenience Cleaning,Repairs & Maintenance,24/08/2016,165341,197.07,FCC ENVIRONMENT SERVICES (FOCSA),A00085,5,2016
Allerdale Borough Council,52107,Capital Expenditure,Evolution Centre Food Bank Works,Removal Costs (Capital),24/08/2016,165342,974.00,Redacted information - included personal information ,C00008,5,2016
Allerdale Borough Council,20300,Third Party Payments,Recycling,Budget-Contract Services,24/08/2016,165343,"368,368.17",FCC ENVIRONMENT SERVICES (FOCSA),A00085,5,2016
Allerdale Borough Council,15600,Supplies & Services,Electoral Registration,Budget-Postal Services,24/08/2016,165344,-4.00,ROYAL MAIL LETTERS,X00021,5,2016
Allerdale Borough Council,15811,Supplies & Services,Parking Services Pay Group,Software Maintenance,24/08/2016,165345,106.43,RELIANCE HIGH-TECH LTD,C00123,5,2016
Allerdale Borough Council,15811,Supplies & Services,Parking Services Pay Group,Software Maintenance,24/08/2016,165346,58.08,RELIANCE HIGH-TECH LTD,C00123,5,2016
Allerdale Borough Council,15811,Supplies & Services,Parking Services Pay Group,Software Maintenance,24/08/2016,165347,106.18,RELIANCE HIGH-TECH LTD,C00123,5,2016
Allerdale Borough Council,15811,Supplies & Services,Parking Services Pay Group,Software Maintenance,24/08/2016,165348,19.36,RELIANCE HIGH-TECH LTD,C00123,5,2016
Allerdale Borough Council,15300,Supplies & Services,Parking Services Pay Group,Budget-Prov of Clothing and Equipment,24/08/2016,165349,205.55,KELTIC,A00017,5,2016
Allerdale Borough Council,15405,Supplies & Services,Parking Services Pay Group,Use of External Printers,24/08/2016,165350,660.00,FIRPRESS PRINTERS,A00063,5,2016
Allerdale Borough Council,15405,Supplies & Services,Parking Services Pay Group,Use of External Printers,24/08/2016,165351,670.00,FIRPRESS PRINTERS,A00063,5,2016
Allerdale Borough Council,15808,Supplies & Services,Multi-functional Printers,Computer Consumables,24/08/2016,165352,221.50,ANTALIS LIMITED,A00122,5,2016
Allerdale Borough Council,15501,Supplies & Services,Tenanted Properties,Consultants Fees,24/08/2016,165353,933.00,BURNETTS SOLICITORS,A00129,5,2016
Allerdale Borough Council,26000,Earmarked Reserves,Shared Revs & Bens Projects,Budget-Expd funded from Reserve,24/08/2016,165354,975.00,MORGAN HUNT PUBLIC SECTOR,A00725,5,2016
Allerdale Borough Council,20150,Third Party Payments,Parking Services Pay Group,General Partnership Service Fees,24/08/2016,165355,268.30,PATROL,A00952,5,2016
Allerdale Borough Council,14202,Transport,Chief Executive,Hire Car and petrol,24/08/2016,165356,74.35,ENTERPRISE RENT A CAR,A01367,5,2016
Allerdale Borough Council,14202,Transport,Chief Executive,Hire Car and petrol,24/08/2016,165357,69.54,ENTERPRISE RENT A CAR,A01367,5,2016
Allerdale Borough Council,12301,Premises,Corporate Property Maintenance,Security,24/08/2016,165358,66.80,CUMBRIAN SYSTEMS,C00062,5,2016
Allerdale Borough Council,10110,Employee Costs,Chief Executive,Salary Sacrifice,24/08/2016,165359,"1,893.30",TUSKERDIRECT LTD,A02186,5,2016
Allerdale Borough Council,20150,Third Party Payments,Managed Car Parks,General Partnership Service Fees,24/08/2016,165360,"5,743.20",E H BOOTH & CO LIMITED,A00919,5,2016
Allerdale Borough Council,20150,Third Party Payments,Managed Car Parks,General Partnership Service Fees,24/08/2016,165361,"4,701.25",HEARTHSTONE HOMES LTD,A01229,5,2016
Allerdale Borough Council,15601,Supplies & Services,Benefits,Postage,24/08/2016,165362,"1,111.11",ROYAL MAIL LETTERS,X00021,5,2016
Allerdale Borough Council,15203,Supplies & Services,Members Services,Catering Costs and Consumables,24/08/2016,165363,103.35,SIEMENS FINANCIAL SERVICES,A01307,5,2016
Allerdale Borough Council,16302,Supplies & Services,Members Services,Room Hire,24/08/2016,165364,130.83,GREENWICH LEISURE LTD (PREV CARLISLE LEISURE),A00136,5,2016
Allerdale Borough Council,15808,Supplies & Services,Multi-functional Printers,Computer Consumables,31/08/2016,165365,244.15,ANTALIS LIMITED,A00122,5,2016
Allerdale Borough Council,12309,Premises,Corporate Property Maintenance,Fire and Safety,24/08/2016,165366,40.79,CUMBRIAN SYSTEMS,C00062,5,2016
Allerdale Borough Council,15101,Supplies & Services,Footways,Equipment Costs,07/09/2016,165367,"1,263.50",MAIN STREET SIGNS LIMITED,A00292,5,2016
Allerdale Borough Council,15808,Supplies & Services,Multi-functional Printers,Computer Consumables,24/08/2016,165368,221.50,ANTALIS LIMITED,A00122,5,2016
Allerdale Borough Council,15604,Supplies & Services,Document Management Pay Group,Franking Machine refills,24/08/2016,165370,40.00,ROYAL MAIL LETTERS,X00021,5,2016
Allerdale Borough Council,12402,Premises,Corporate Property Maintenance,Electricity,24/08/2016,165371,"2,592.35",N POWER ,X00015,5,2016
Allerdale Borough Council,12402,Premises,Footways,Electricity,24/08/2016,165372,"5,020.28",N POWER ,X00015,5,2016
Allerdale Borough Council,12408,Premises,Corporate Property Maintenance,Water & Sewage,24/08/2016,165373,"1,687.15",UNITED UTILITIES ,X00011,5,2016
Allerdale Borough Council,15805,Supplies & Services,IT Services,Computer Network,07/09/2016,165374,60.00,THUS/DEMON PLC/ (VODAFONE),A00598,5,2016
Allerdale Borough Council,12402,Premises,Corporate Property Maintenance,Electricity,24/08/2016,165375,"1,288.81",N POWER,X00015,5,2016
Allerdale Borough Council,12402,Premises,Public Convenience Cleaning,Electricity,24/08/2016,165376,80.53,N POWER,X00015,5,2016
Allerdale Borough Council,12402,Premises,Corporate Property Maintenance,Electricity,24/08/2016,165377,89.36,N POWER,X00015,5,2016
Allerdale Borough Council,12402,Premises,Public Convenience Cleaning,Electricity,24/08/2016,165378,9.13,N POWER,X00015,5,2016
Allerdale Borough Council,12402,Premises,Public Convenience Cleaning,Electricity,24/08/2016,165379,9.13,N POWER,X00015,5,2016
Allerdale Borough Council,12402,Premises,Public Convenience Cleaning,Electricity,24/08/2016,165380,17.02,N POWER,X00015,5,2016
Allerdale Borough Council,12402,Premises,Public Convenience Cleaning,Electricity,24/08/2016,165381,9.03,N POWER,X00015,5,2016
Allerdale Borough Council,12402,Premises,Public Convenience Cleaning,Electricity,24/08/2016,165382,51.25,N POWER,X00015,5,2016
Allerdale Borough Council,12402,Premises,Public Convenience Cleaning,Electricity,24/08/2016,165383,67.74,N POWER,X00015,5,2016
Allerdale Borough Council,12402,Premises,Public Convenience Cleaning,Electricity,24/08/2016,165384,9.03,N POWER,X00015,5,2016
Allerdale Borough Council,12402,Premises,Corporate Property Maintenance,Electricity,24/08/2016,165385,7.19,N POWER,X00015,5,2016
Allerdale Borough Council,12402,Premises,Corporate Property Maintenance,Electricity,24/08/2016,165386,392.24,N POWER,X00015,5,2016
Allerdale Borough Council,12402,Premises,Corporate Property Maintenance,Electricity,24/08/2016,165387,318.14,N POWER,X00015,5,2016
Allerdale Borough Council,12402,Premises,Corporate Property Maintenance,Electricity,24/08/2016,165388,10.88,N POWER,X00015,5,2016
Allerdale Borough Council,12402,Premises,Corporate Property Maintenance,Electricity,24/08/2016,165389,18.08,N POWER,X00015,5,2016
Allerdale Borough Council,15601,Supplies & Services,Benefits,Postage,24/08/2016,165390,"1,859.62",ROYAL MAIL LETTERS,X00021,5,2016
Allerdale Borough Council,12402,Premises,Public Convenience Cleaning,Electricity,24/08/2016,165391,-19.08,N POWER,X00015,5,2016
Allerdale Borough Council,12408,Premises,Corporate Property Maintenance,Water & Sewage,24/08/2016,165392,22.84,UNITED UTILITIES ,X00011,5,2016
Allerdale Borough Council,12408,Premises,Public Convenience Cleaning,Water & Sewage,24/08/2016,165393,56.87,UNITED UTILITIES ,X00011,5,2016
Allerdale Borough Council,12402,Premises,Corporate Property Maintenance,Electricity,24/08/2016,165394,273.48,N POWER,X00015,5,2016
Allerdale Borough Council,12402,Premises,Corporate Property Maintenance,Electricity,24/08/2016,165395,119.70,N POWER,X00015,5,2016
Allerdale Borough Council,12305,Premises,Corporate Property Maintenance,Inspections and Services,31/08/2016,165396,-474.00,BORDER FOOD MACHINERY,A00388,5,2016
Allerdale Borough Council,12305,Premises,Corporate Property Maintenance,Inspections and Services,31/08/2016,165397,474.00,BORDER FOOD MACHINERY,A00388,5,2016
Allerdale Borough Council,12305,Premises,Corporate Property Maintenance,Inspections and Services,31/08/2016,165398,-128.00,BORDER FOOD MACHINERY,A00388,5,2016
Allerdale Borough Council,12305,Premises,Corporate Property Maintenance,Inspections and Services,31/08/2016,165399,128.00,BORDER FOOD MACHINERY,A00388,5,2016
Allerdale Borough Council,16350,Supplies & Services,Corporate Management,Miscellaneous Expenses,24/08/2016,165400,"12,300.00",BDO LLP,M00949,5,2016
Allerdale Borough Council,16350,Supplies & Services,Homelessness,Miscellaneous Expenses,24/08/2016,165401,400.00,Redacted information - included personal information ,M00822,5,2016
Allerdale Borough Council,16150,Supplies & Services,Sports Development,General Promotions,24/08/2016,165402,225.00,POD (NORTH WEST) LIMITED,A01977,5,2016
Allerdale Borough Council,21150,Transfer Payments,Supporting Leisure Activity across Aller,General Grants,24/08/2016,165403,"5,000.00",WIGTON BATHS TRUST,M00604,5,2016
Allerdale Borough Council,15501,Supplies & Services,Environmental Initiatives,Consultants Fees,07/09/2016,165404,"1,583.75",CONIBEAR DESIGN ASSOCIATES (CDA),A02347,5,2016
Allerdale Borough Council,15101,Supplies & Services,Domestic Waste,Equipment Costs,07/09/2016,165405,"7,656.00",PLASTIC OMNIUM URBAN SYSTEMS LTD,A00159,5,2016
Allerdale Borough Council,14101,Transport,Workington Nature Partnership,Vehicle Leasing,24/08/2016,165406,750.00,DOBIES VAUXHALL,A00254,5,2016
Allerdale Borough Council,14101,Transport,Workington Nature Partnership,Vehicle Leasing,24/08/2016,165407,250.00,DOBIES VAUXHALL,A00254,5,2016
Allerdale Borough Council,21150,Transfer Payments,Solway Wetlands Project,General Grants,14/09/2016,165408,"2,500.00",NORTH OF ENGLAND CIVIC TRUST,A02178,5,2016
Allerdale Borough Council,15501,Supplies & Services,Solway Wetlands Project,Consultants Fees,14/09/2016,165409,"3,250.00",Redacted information - included personal information ,A02265,5,2016
Allerdale Borough Council,20101,Third Party Payments,Recycling,Cleansing Contract,24/08/2016,165410,"2,418.25",CUMBRIA WASTE MANAGEMENT LTD,A01304,5,2016
Allerdale Borough Council,20101,Third Party Payments,Recycling,Cleansing Contract,24/08/2016,165411,"2,849.31",CUMBRIA WASTE MANAGEMENT LTD,A01304,5,2016
Allerdale Borough Council,16101,Supplies & Services,Solway Wetlands Project,Statutory Notices,14/09/2016,165412,385.00,NORTH OF ENGLAND CIVIC TRUST,A02178,5,2016
Allerdale Borough Council,20101,Third Party Payments,Recycling,Cleansing Contract,24/08/2016,165413,"3,362.33",CUMBRIA WASTE MANAGEMENT LTD,A01304,5,2016
Allerdale Borough Council,20101,Third Party Payments,Recycling,Cleansing Contract,24/08/2016,165414,"3,227.02",CUMBRIA WASTE MANAGEMENT LTD,A01304,5,2016
Allerdale Borough Council,20101,Third Party Payments,Recycling,Cleansing Contract,24/08/2016,165415,"2,914.63",CUMBRIA WASTE MANAGEMENT LTD,A01304,5,2016
Allerdale Borough Council,20101,Third Party Payments,Recycling,Cleansing Contract,24/08/2016,165416,"3,241.10",CUMBRIA WASTE MANAGEMENT LTD,A01304,5,2016
Allerdale Borough Council,20101,Third Party Payments,Recycling,Cleansing Contract,24/08/2016,165417,"1,839.93",CUMBRIA WASTE MANAGEMENT LTD,A01304,5,2016
Allerdale Borough Council,20101,Third Party Payments,Recycling,Cleansing Contract,24/08/2016,165418,367.91,CUMBRIA WASTE MANAGEMENT LTD,A01304,5,2016
Allerdale Borough Council,20101,Third Party Payments,Recycling,Cleansing Contract,24/08/2016,165419,620.14,CUMBRIA WASTE MANAGEMENT LTD,A01304,5,2016
Allerdale Borough Council,12201,Premises,Homelessness,Internal Maintenance,24/08/2016,165420,35.06,TRAVIS PERKINS,A00742,5,2016
Allerdale Borough Council,15811,Supplies & Services,IT Services,Software Maintenance,24/08/2016,165421,264.99,SAGE (UK) LTD,A01911,5,2016
Allerdale Borough Council,15810,Supplies & Services,Shared ICT Costs,Software Licences,14/09/2016,165422,"1,380.00",CRANFIELD UNIVERSITY,A01644,5,2016
Allerdale Borough Council,15401,Supplies & Services,Building Control - Chargeable,General Stationery,24/08/2016,165423,34.28,HEATONS OFFICE SOLUTION (PREV LAKELAND/INTEGRITY),A00069,5,2016
Allerdale Borough Council,15401,Supplies & Services,Building Control - Chargeable,General Stationery,24/08/2016,165424,-19.10,HEATONS OFFICE SOLUTION (PREV LAKELAND/INTEGRITY),A00069,5,2016
Allerdale Borough Council,15401,Supplies & Services,Building Control - Chargeable,General Stationery,24/08/2016,165425,-15.18,HEATONS OFFICE SOLUTION (PREV LAKELAND/INTEGRITY),A00069,5,2016
Allerdale Borough Council,15302,Supplies & Services,Parking Services Pay Group,Protective Clothing,24/08/2016,165426,213.97,THOMAS ARMSTRONG - LINDEN/KAYTOOLS,A00091,5,2016
Allerdale Borough Council,15811,Supplies & Services,Parking Services Pay Group,Software Maintenance,24/08/2016,165427,105.54,RELIANCE HIGH-TECH LTD,C00123,5,2016
Allerdale Borough Council,15203,Supplies & Services,Members Services,Catering Costs and Consumables,24/08/2016,165428,79.20,AL'S KITCHEN LTD,A00187,5,2016
Allerdale Borough Council,15501,Supplies & Services,Estates,Consultants Fees,24/08/2016,165429,"2,300.00",JAMES ANDREW RECRUITMENT SOLUTIONS LTD,A02339,5,2016
Allerdale Borough Council,15101,Supplies & Services,Corporate Property Maintenance,Equipment Costs,31/08/2016,165430,237.00,CENTRIC OFFICE SOLUTIONS,A00065,5,2016
Allerdale Borough Council,16150,Supplies & Services,Maryport Shop Front Improvements,General Promotions,24/08/2016,165431,840.00,Redacted information - included personal information ,M00950,5,2016
Allerdale Borough Council,16150,Supplies & Services,Town Centre Management,General Promotions,24/08/2016,165432,"10,000.00",Redacted information - included personal information ,M00601,5,2016
Allerdale Borough Council,54105,Capital Expenditure,Disabled Facilities Grants,Grants  Private Individuals (Capital),24/08/2016,165433,"3,595.00",DOLPHIN STAIRLIFTS CUMBRIA,X00107,5,2016
Allerdale Borough Council,54105,Capital Expenditure,Disabled Facilities Grants,Grants  Private Individuals (Capital),24/08/2016,165434,"3,036.00",JOSEPH RIDLEY BUILDERS LTD,X00124,5,2016
Allerdale Borough Council,54105,Capital Expenditure,Disabled Facilities Grants,Grants  Private Individuals (Capital),24/08/2016,165435,"2,760.00",BLUE FLAME SERVICES LTD,X00213,5,2016
Allerdale Borough Council,54105,Capital Expenditure,Disabled Facilities Grants,Grants  Private Individuals (Capital),24/08/2016,165436,"3,850.00",Redacted information - included personal information ,X00196,5,2016
Allerdale Borough Council,54105,Capital Expenditure,Disabled Facilities Grants,Grants  Private Individuals (Capital),24/08/2016,165437,"18,855.00",JOSEPH RIDLEY BUILDERS LTD,X00124,5,2016
Allerdale Borough Council,54105,Capital Expenditure,Cluster of Empty Homes,Grants  Private Individuals (Capital),24/08/2016,165438,"8,000.00",Redacted information - included personal information ,X00249,5,2016
Allerdale Borough Council,15501,Supplies & Services,Estates,Consultants Fees,24/08/2016,165439,960.00,JAMES ANDREW RECRUITMENT SOLUTIONS LTD,A02339,5,2016
Allerdale Borough Council,15506,Supplies & Services,Food and Occupational Health,Professional Services,31/08/2016,165440,150.36,PUBLIC HEALTH ENGLAND,A01839,5,2016
Allerdale Borough Council,81608,Balance Sheet,General Fund,Legal Provisions,24/08/2016,165441,"11,400.00",Redacted information - included personal information ,M00690,5,2016
Allerdale Borough Council,51101,Capital Expenditure,New Leisure Facility,External Contractor Payments (Capital),24/08/2016,165442,"104,285.54",WILLMOTT DIXON CAPITAL WORKS LTD,C00127,5,2016
Allerdale Borough Council,81608,Balance Sheet,General Fund,Legal Provisions,24/08/2016,165443,"8,735.28",BELL PARK KERRIDGE,A01759,5,2016
Allerdale Borough Council,15401,Supplies & Services,Solway Coast AONB Core Funding,General Stationery,24/08/2016,165444,122.25,ALLERDALE BOROUGH COUNCIL - AONB,X00216,5,2016
Allerdale Borough Council,10601,Employee Costs,Training,External Courses & Seminar Fees,24/08/2016,165445,47.08,ENTERPRISE RENT A CAR,A01367,5,2016
Allerdale Borough Council,15503,Supplies & Services,Human Resources Pay Group,Court and Tribunal Costs,24/08/2016,165446,49.80,IMPACT HOUSING ASSOCIATION LTD,A00236,5,2016
Allerdale Borough Council,20101,Third Party Payments,Recycling,Cleansing Contract,24/08/2016,165447,-570.20,CUMBRIA WASTE MANAGEMENT LTD,A01304,5,2016
Allerdale Borough Council,12405,Premises,Off-street - Owned,Rentals and Lease Charges,31/08/2016,165448,387.75,SOLWAY PLAIN FUTURES LTD,A01194,5,2016
Allerdale Borough Council,12405,Premises,Off-street - Owned,Rentals and Lease Charges,31/08/2016,165449,387.75,SOLWAY PLAIN FUTURES LTD,A01194,5,2016
Allerdale Borough Council,16102,Supplies & Services,LEP Flood Recovery Events Funding,Regeneration Initiatives,31/08/2016,165450,"10,000.00",CN EVENTS MANAGEMENT,A01099,5,2016
Allerdale Borough Council,15405,Supplies & Services,Recycling,Use of External Printers,31/08/2016,165451,155.00,FIRPRESS PRINTERS,A00063,5,2016
Allerdale Borough Council,15405,Supplies & Services,Recycling,Use of External Printers,31/08/2016,165452,130.00,FIRPRESS PRINTERS,A00063,5,2016
Allerdale Borough Council,15405,Supplies & Services,Recycling,Use of External Printers,31/08/2016,165453,145.00,FIRPRESS PRINTERS,A00063,5,2016
Allerdale Borough Council,15501,Supplies & Services,Estates,Consultants Fees,31/08/2016,165454,"2,300.00",JAMES ANDREW RECRUITMENT SOLUTIONS LTD,A02339,5,2016
Allerdale Borough Council,15803,Supplies & Services,IT Services,Hardware Purchase,21/09/2016,165455,"1,392.25",MISCO,A00125,5,2016
Allerdale Borough Council,26000,Earmarked Reserves,Shared Revs & Bens Projects,Budget-Expd funded from Reserve,31/08/2016,165456,962.00,MORGAN HUNT PUBLIC SECTOR,A00725,5,2016
Allerdale Borough Council,15103,Supplies & Services,Solway Wetlands Project,Purchase of Materials,07/09/2016,165457,343.19,DF TIMBER LTD,A02325,5,2016
Allerdale Borough Council,20100,Third Party Payments,Parking Services Pay Group,Budget-Partnership Services,31/08/2016,165458,"1,000.00",TRAFFIC ENFORCEMENT CENTRE,A01065,5,2016
Allerdale Borough Council,15101,Supplies & Services,Public Building Cleaning,Equipment Costs,31/08/2016,165459,8.64,WF HYGIENE & CLEANING SUPPLIES,A01794,5,2016
Allerdale Borough Council,15101,Supplies & Services,Public Building Cleaning,Equipment Costs,31/08/2016,165460,21.00,WF HYGIENE & CLEANING SUPPLIES,A01794,5,2016
Allerdale Borough Council,16102,Supplies & Services,Town Centre Management,Regeneration Initiatives,31/08/2016,165461,36.60,A&B CATERING LTD,A02356,5,2016
Allerdale Borough Council,20101,Third Party Payments,Public Convenience Cleaning,Cleansing Contract,31/08/2016,165468,325.00,LINDOW HALL,A00165,5,2016
Allerdale Borough Council,10604,Employee Costs,Director of Resources & PA,Hire of Training Rooms/Venues,31/08/2016,165469,800.00,CENTRE FOR LEADERSHIP PERFORMANCE,A01504,5,2016
Allerdale Borough Council,16100,Supplies & Services,Communications and Marketing,Budget-Advertising and Promotions,31/08/2016,165470,490.00,ADAMEDIA LTD,A02309,5,2016
Allerdale Borough Council,16150,Supplies & Services,"The Hub, Workington Town Centre",General Promotions,31/08/2016,165471,90.00,POD (NORTH WEST) LIMITED,A01977,5,2016
Allerdale Borough Council,14101,Transport,Shared IT Services Pay Group,Vehicle Leasing,,165472,199.00,ARNOLD CLARK FINANCE LIMITED,A01781,5,2016
Allerdale Borough Council,10401,Employee Costs,Shared IT Services Pay Group,Agency Staff Costs,31/08/2016,165473,503.29,ADECCO RECRUITMENT,A00188,5,2016
Allerdale Borough Council,12203,Premises,Public Convenience Cleaning,Plumbing and Heating Maintenance,31/08/2016,165474,754.00,Redacted information - included personal information ,C00008,5,2016
Allerdale Borough Council,12202,Premises,Corporate Property Maintenance,Electrical Repairs and Service,31/08/2016,165475,756.10,J & J ELECTRICAL (CUMBRIA) LTD,C00038,5,2016
Allerdale Borough Council,15402,Supplies & Services,Customer Services Pay Group,Photocopier Charges,07/09/2016,165476,9.56,RICOH UK LTD,A00037,5,2016
Allerdale Borough Council,15402,Supplies & Services,Customer Services Pay Group,Photocopier Charges,07/09/2016,165477,10.75,RICOH UK LTD,A00037,5,2016
Allerdale Borough Council,15513,Supplies & Services,Environmental Initiatives,Subcontractors - General,07/09/2016,165478,"1,775.00",OPENSPACE (CUMBRIA) LTD,C00178,5,2016
Allerdale Borough Council,26000,Earmarked Reserves,High Level Stewardship,Budget-Expd funded from Reserve,07/09/2016,165479,710.00,OPENSPACE (CUMBRIA) LTD,C00178,5,2016
Allerdale Borough Council,15103,Supplies & Services,Off-street - Owned,Purchase of Materials,07/09/2016,165480,104.00,NAGELS UK LTD,A01182,5,2016
Allerdale Borough Council,12305,Premises,Corporate Property Maintenance,Inspections and Services,31/08/2016,165481,402.00,BORDER FOOD MACHINERY,A00388,5,2016
Allerdale Borough Council,15101,Supplies & Services,Domestic Waste,Equipment Costs,31/08/2016,165482,"7,111.00",PLASTIC OMNIUM URBAN SYSTEMS LTD,A00159,5,2016
Allerdale Borough Council,20150,Third Party Payments,Managed Car Parks,General Partnership Service Fees,31/08/2016,165483,"61,209.20",PARKSAFE,A00647,5,2016
Allerdale Borough Council,20150,Third Party Payments,Managed Car Parks,General Partnership Service Fees,31/08/2016,165484,"45,028.50",PARKSAFE,A00647,5,2016
Allerdale Borough Council,20150,Third Party Payments,Managed Car Parks,General Partnership Service Fees,31/08/2016,165485,"53,614.40",PARKSAFE,A00647,5,2016
Allerdale Borough Council,12408,Premises,Corporate Property Maintenance,Water & Sewage,31/08/2016,165486,145.94,UNITED UTILITIES ,X00011,5,2016
Allerdale Borough Council,12408,Premises,Public Convenience Cleaning,Water & Sewage,31/08/2016,165487,115.10,UNITED UTILITIES ,X00011,5,2016
Allerdale Borough Council,12408,Premises,Public Convenience Cleaning,Water & Sewage,31/08/2016,165488,302.68,UNITED UTILITIES ,X00011,5,2016
Allerdale Borough Council,12408,Premises,Public Convenience Cleaning,Water & Sewage,31/08/2016,165489,126.10,UNITED UTILITIES ,X00011,5,2016
Allerdale Borough Council,12402,Premises,Corporate Property Maintenance,Electricity,31/08/2016,165490,32.61,BES COMMERCIAL ELECTRICITY LTD,X00243,5,2016
Allerdale Borough Council,12408,Premises,Corporate Property Maintenance,Water & Sewage,31/08/2016,165491,10.80,UNITED UTILITIES ,X00011,5,2016
Allerdale Borough Council,70104,VAT,Input VAT,VAT - 20%,31/08/2016,165492,11.62,ROSSENDALES LTD,A00964,5,2016
Allerdale Borough Council,15704,Supplies & Services,IT Services,Mobile Phones,31/08/2016,165493,"1,188.02",VODAFONE ,A00551,5,2016
Allerdale Borough Council,12408,Premises,Corporate Property Maintenance,Water & Sewage,31/08/2016,165494,178.06,UNITED UTILITIES ,X00011,5,2016
Allerdale Borough Council,16150,Supplies & Services,Solway Wetlands Project,General Promotions,31/08/2016,165495,54.00,Redacted information - included personal information ,M00524,5,2016
Allerdale Borough Council,75103,Holding and Control Accounts,Payroll Suspense Account,PAYROLL August 16 Travel & Subsistence  ,,,"15,297.11",INLAND REVENUE,X00038,5,2016
